[Event "RUDAR XXII-IM 2024"]
[Site "Pozarevac"]
[Date "2024.02.12"]
[Round "2.4"]
[White "Popchev, Milko"]
[Black "Mesic, Ismet"]
[Result "0-1"]
[ECO "B10"]
[WhiteElo "2193"]
[BlackElo "2232"]
[Annotator "RC"]
[PlyCount "96"]
[EventDate "2024.02.12"]
[EventType "tourn"]
[EventCountry "SRB"]
[SourceTitle "playchess.com"]
[Source "ChessBase"]
[SourceQuality "1"]
[TimeControl "5400+30"]

1. e4 {[%emt 0:03:25]} c6 {[%emt 0:00:01]} 2. d3 {[%emt 0:00:15]} d5 {[%emt 0:00:14]} 3. Nd2 {[%emt 0:00:15]} e5 {[%emt 0:00:23]} 4. Ngf3 {[%emt 0:00:29]} Bd6 {[%emt 0:00:34]} 5. Be2 {[%emt 0:01:23]} Nf6 {[%emt 0:00:12]} 6. O-O {[%emt 0:00:22]} O-O {[%emt 0:00:34]} 7. b3 {[%emt 0:00:41]} c5 {[%emt 0:00:44]} 8. Bb2 {[%emt 0:01:31]} Nc6 {[%emt 0:00:35]} 9. Re1 {[%emt 0:00:43]} Re8 {[%emt 0:05:17]} 10. Bf1 {[%emt 0:01:24]} b6 {[%emt 0:02:04]} 11. exd5 {[%emt 0:01:10]} Nxd5 {[%emt 0:00:11]} 12. Nc4 {[%emt 0:00:18]} f6 {[%emt 0:03:26]} 13. Nxd6 {[%emt 0:00:27]} Qxd6 {[%emt 0:00:09]} 14. Nd2 {[%emt 0:00:49]} Be6 {[%emt 0:06:41]} 15. c3 {[%emt 0:02:16]} Nf4 {[%emt 0:06:28]} 16. Qc2 {[%emt 0:01:33]} Rad8 {[%emt 0:02:41]} 17. Ne4 {[%emt 0:00:20]} Qd7 {[%emt 0:08:56]} 18. Rad1 {[%emt 0:00:14]} Qf7 {[%emt 0:01:40]} 19. Re3 {[%emt 0:02:02]} Rd7 {[%emt 0:04:44]} 20. Bc1 {[%emt 0:01:13]} Red8 {[%emt 0:01:18]} 21. Ree1 {[%emt 0:04:13]} Kh8 {[%emt 0:06:18]} 22. Be3 {[%emt 0:03:19]} Bf5 {[%emt 0:05:50]} 23. g3 {[%emt 0:02:41]} Qg6 {[%emt 0:03:02]} 24. f3 {[%emt 0:00:34]} Bh3 {[%emt 0:04:45]} 25. Bxh3 {[%emt 0:02:51]} Nxh3+ {[%emt 0:01:12]} 26. Kh1 {[%emt 0:01:07]} f5 {[%emt 0:00:38]} 27. Nf2 {[%emt 0:00:15]} f4 {[%emt 0:06:42]} 28. Bxc5 {[%emt 0:02:33]} Ng5 {[%emt 0:04:36]} 29. gxf4 {[%emt 0:06:20]} Nxf3 {[%emt 0:05:08]} 30. Rf1 {[%emt 0:02:52]} bxc5 {[%emt 0:01:42]} 31. Ne4 {[%emt 0:00:10]} Nh4 {[%emt 0:02:02]} 32. Nxc5 {[%emt 0:00:34]} Rf7 {[%emt 0:03:14]} 33. b4 {[%emt 0:04:46]} exf4 {[%emt 0:02:27]} 34. Qf2 {[%emt 0:00:19]} Qh5 {[%emt 0:01:50]} 35. Rde1 {[%emt 0:00:46]} Rf6 {[%emt 0:03:32]} 36. Re4 {[%emt 0:00:54]} Ng6 {[%emt 0:01:02]} 37. d4 {[%emt 0:00:19]} Qd5 {[%emt 0:00:21]} 38. Qf3 {[%emt 0:00:19]} Qxa2 {[%emt 0:01:35]} 39. Rfe1 {[%emt 0:00:34]} Qg8 {[%emt 0:01:01]} 40. Ne6 {[%emt 0:02:11]} Rd7 {[%emt 0:01:35]} 41. Qh3 {[%emt 0:01:07]} f3 {[%emt 0:00:48]} 42. b5 {[%emt 0:01:09]} f2 {[%emt 0:00:28]} 43. bxc6 {[%emt 0:00:38]} fxe1=Q+ {[%emt 0:00:03]} 44. Rxe1 {[%emt 0:00:09]} Rd6 {[%emt 0:00:35]} 45. d5 {[%emt 0:01:37]} Rxd5 {[%emt 0:00:14]} 46. c7 {[%emt 0:00:05]} Qa8 {[%emt 0:03:45]} 47. Kg1 {[%emt 0:01:20]} Ne7 {[%emt 0:00:23]} 48. Nd4 {[%emt 0:01:55]} Rg5+ {[%emt 0:02:50]} 0-1

[Event "RUDAR XXII-IM 2024"]
[Site "Pozarevac"]
[Date "2024.02.12"]
[Round "2.5"]
[White "Karamsetty, Jeevan"]
[Black "Sri Sai Baswanth P"]
[Result "1/2-1/2"]
[ECO "B40"]
[WhiteElo "2211"]
[BlackElo "2096"]
[Annotator "TA"]
[PlyCount "77"]
[EventDate "2024.02.12"]
[EventType "tourn"]
[EventCountry "SRB"]
[SourceTitle "playchess.com"]
[Source "ChessBase"]
[SourceQuality "1"]
[TimeControl "5400+30"]

{[%evp 9,77,0,0,5,13,0,14,4,9,9,4,-47,-47,-41,-13,-52,-26,-57,0,-58,-53,-54,-62,-62,-48,-53,-56,-52,-53,-59,-9,-57,-49,-49,-26,-44,-35,-42,-33,-62,-62,-62,-62,-62,-62,-62,-62,-62,-62,-69,-55,-62,-48,-47,-54,-61,-35,-41,0,0,0,0,0,0,0,0,0,0,0,0]} 1. e4 {[%emt 0:01:48]} c5 {[%emt 0:00:27]} 2. Nf3 {[%emt 0:00:06]} e6 {[%emt 0:00:18]} 3. d3 {[%emt 0:00:07]} Nc6 {[%emt 0:00:31]} 4. g3 {[%emt 0:00:13]} g6 {[%emt 0:07:53]} 5. Bg5 {[%emt 0:00:13]} f6 {[%emt 0:01:07]} 6. Bd2 {[%emt 0:00:17]} Bg7 {[%emt 0:01:11]} 7. Bg2 {[%emt 0:01:26]} Nge7 {[%emt 0:00:07]} 8. O-O {[%emt 0:02:13]} O-O {[%emt 0:00:11]} 9. Re1 {[%emt 0:05:29]} d6 {[%emt 0:02:52]} 10. Qc1 {[%emt 0:07:06]} (10. c3 $11) 10... e5 $15 {[%emt 0:11:34]} 11. c3 {[%emt 0:08:53]} Be6 {[%emt 0:09:12]} 12. Na3 {[%emt 0:04:22][%cal Bb1a3,Ba3c2,Bc2e3][%mdl 32]} Qd7 {[%emt 0:01:16]} 13. Nc2 {[%emt 0:04:26]} Rfd8 {[%emt 0:02:29]} ({Better is} 13... d5 $15) 14. Bh6 {[%emt 0:06:54]} (14. d4 $11) 14... d5 {[%emt 0:01:54]} 15. Bxg7 {[%emt 0:06:26]} Kxg7 {[%emt 0:00:01]} 16. exd5 {[%emt 0:02:57]} Bxd5 {[%emt 0:00:46]} 17. Rd1 {[%emt 0:00:59]} Rac8 {[%emt 0:02:10]} 18. Ne3 {[%emt 0:04:15]} Be6 {[%emt 0:00:13]} 19. Qc2 {[%emt 0:01:48] [#]} Nd4 {[%emt 0:05:05]} 20. Qd2 {[%emt 0:07:30]} (20. cxd4 $11 cxd4 21. Nc4) 20... Nxf3+ {[%emt 0:09:19]} 21. Bxf3 {[%emt 0:00:06]} Nd5 {[%emt 0:06:07]} 22. Qe2 {[%emt 0:03:34]} Nxe3 {[%emt 0:01:21]} 23. fxe3 {[%emt 0:01:22]} Bf5 {[%emt 0:02:45][%cal Rf5d3]} 24. e4 {[%emt 0:03:17]} Be6 {[%emt 0:00:06]} 25. Qe3 {[%emt 0:05:55]} Rc6 {[%emt 0:03:20]} 26. Be2 {[%emt 0:00:20]} h5 {[%emt 0:04:59]} 27. Rd2 {[%emt 0:03:54][%cal Bd1d2,Bd2f2,Bf2f6,Bf6e6][%mdl 32]} b6 {[%emt 0:00:22]} 28. b3 {[%emt 0:01:25]} Rd6 {[%emt 0:00:27]} 29. Rad1 {[%emt 0:00:31]} a5 {[%emt 0:00:19]} 30. Bf1 {[%emt 0:06:17]} a4 {[%emt 0:03:04]} 31. Rb1 {[%emt 0:00:41]} a3 {[%emt 0:02:24]} 32. Rf2 {[%emt 0:00:21]} Qc6 {[%emt 0:03:50]} 33. Qc1 {[%emt 0:00:55]} Rxd3 {[%emt 0:04:14]} 34. Bxd3 {[%emt 0:00:20] The position is equal.} Rxd3 {[%emt 0:00:01]} 35. Rxf6 $1 {[%emt 0:00:16] [#] Strongly threatening Qg5.} Qxe4 {[%emt 0:02:14]} 36. Rxe6 {[%emt 0:01:34]} Rxc3 {[%emt 0:03:23]} 37. Qf1 {[%emt 0:04:55]} (37. Qxc3 $2 {is the wrong capture.} Qxb1+ 38. Kf2 Qb2+ (38... Qxa2+ $2 {loses.} 39. Kf3 $18) (38... Qf5+ $2 39. Qf3 $19) 39. Qxb2 axb2 40. Rxe5 b1=Q $19 (40... b1=B $2 41. a4 $18)) (37. Qe1 $5 Re3 $8 38. Qf1 $11) 37... Rf3 {[%emt 0:00:07] Hoping for ...Qd4+.} 38. Qd1 {[%emt 0:01:24]} Rd3 {[%emt 0:00:06]} 39. Qf1 {[%emt 0:00:28] Weighted Error Value: White=0.12 (very precise) /Black=0.09 (flawless) .  Mistake:       	White=3     	Black=2      Inaccurate:     	White=3     	Black=4      OK:         	White=8     	Black=14     Best:        	---       	Black=1      Strong:       	White=1     	---} 1/2-1/2

[Event "RUDAR XXII-IM 2024"]
[Site "Pozarevac"]
[Date "2024.02.12"]
[Round "3.1"]
[White "Sri Sai Baswanth P"]
[Black "Ilincic, Zlatko"]
[Result "0-1"]
[ECO "A37"]
[WhiteElo "2096"]
[BlackElo "2291"]
[Annotator "TA"]
[PlyCount "115"]
[EventDate "2024.02.12"]
[EventType "tourn"]
[EventCountry "SRB"]
[SourceTitle "playchess.com"]
[Source "ChessBase"]
[SourceQuality "1"]
[TimeControl "5400+30"]

{[%evp 22,115,0,0,13,-17,-22,-20,-19,-105,-94,-95,-97,-101,-114,-113,-117,-118,-120,-174,-172,-160,-178,-160,-155,-158,-156,-170,-174,-177,-174,-171,-160,-181,-188,-190,-186,-188,-196,-193,-205,-262,-260,-297,-287,-295,-291,-292,-295,-597,-483,-510,-513,-428,-525,-560,-552,-558,-547,-539,-577,-534,-511,-512,-504,-495,-468,-481,-477,-456,-414,-401,-381,-859,-831,-12833,-6087,-29974,-29975,-29981,-29982,-29982,-29983,-29983,-29983,-29982,-29983,-29984,-29985,-29985,-29986,-29986,-29987,-29994,-29987,-29999]} 1. c4 {[%emt 0:00:08]} e5 {[%emt 0:01:41]} 2. g3 {[%emt 0:00:07]} c5 {[%emt 0:00:39]} 3. Bg2 {[%emt 0:00:21]} Nc6 {[%emt 0:00:11]} 4. Nc3 {[%emt 0:00:12]} g6 {[%emt 0:00:35]} 5. Nf3 {[%emt 0:00:16]} Bg7 {[%emt 0:00:28]} 6. O-O {[%emt 0:01:01]} Nge7 {[%emt 0:00:31]} 7. d3 {[%emt 0:01:03]} O-O {[%emt 0:00:16]} 8. a3 {[%emt 0:05:55]} d6 {[%emt 0:00:57]} 9. Rb1 {[%emt 0:00:26]} a5 {[%emt 0:00:23]} 10. Ne1 {[%emt 0:00:13]} Be6 {[%emt 0:02:58]} 11. Bg5 {[%emt 0:00:09]} f6 {[%emt 0:03:38]} 12. Bd2 {[%emt 0:00:46]} d5 {[%emt 0:04:12]} 13. cxd5 {[%emt 0:00:43]} (13. Na4 {simplifies} b6 14. b4 axb4 15. axb4 Nxb4 16. Bxb4 cxb4 17. Rxb4 Rb8 18. Qb1) 13... Nxd5 {[%emt 0:00:40]} 14. Qb3 {[%emt 0:02:17][%cal Rg2d5]} a4 {[%emt 0:04:55] The position is equal.} 15. Qxb7 {[%emt 0:18:51]} (15. Qd1 $11 {remains equal.}) 15... Na5 $1 $17 {[%emt 0:02:08][%cal Bc6a5,Ba5b3,Bb3d4][%mdl 32]} 16. Qb5 {[%emt 0:01:16]} Nb3 {[%emt 0:01:03]} 17. Qc6 {[%emt 0:04:41]} Nd4 {[%emt 0:04:39]} 18. Qxe6+ {[%emt 0:11:50]} Nxe6 {[%emt 0:00:34]} 19. Bxd5 {[%emt 0:00:02] This pair of bishops is nice.} Qd7 {[%emt 0:04:04]} 20. Be3 {[%emt 0:03:50] [#]} (20. Nf3 $17 {might work better.}) 20... Ra5 $1 $19 {[%emt 0:02:35]} 21. Nf3 {[%emt 0:00:52]} Kh8 {[%emt 0:00:57]} 22. Bxe6 {[%emt 0:00:35]} Qxe6 {[%emt 0:00:16]} 23. Nd2 {[%emt 0:00:10]} Rc8 {[%emt 0:02:35]} 24. Rfc1 {[%emt 0:00:46]} f5 {[%emt 0:04:27]} 25. f3 {[%emt 0:00:29]} Ra6 {[%emt 0:04:54]} 26. Rc2 {[%emt 0:00:25]} Bf8 {[%emt 0:08:05]} 27. Rbc1 {[%emt 0:00:14]} Be7 {[%emt 0:00:36]} 28. Nc4 {[%emt 0:01:05]} Kg8 {[%emt 0:01:41]} 29. Bd2 {[%emt 0:00:22]} g5 {[%emt 0:01:14]} 30. Kg2 {[%emt 0:01:06]} h5 {[%emt 0:01:35]} 31. Re1 {[%emt 0:03:08]} g4 {[%emt 0:04:15]} 32. fxg4 {[%emt 0:00:11]} hxg4 {[%emt 0:00:25]} 33. e4 {[%emt 0:00:04]} Rd8 {[%emt 0:03:04]} 34. exf5 {[%emt 0:01:35]} Qxf5 {[%emt 0:00:33]} 35. Nxe5 {[%emt 0:00:06]} (35. Bc1 {is more resistant.}) 35... Rxd3 {[%emt 0:00:49]} 36. Bf4 {[%emt 0:01:10] [#]} Rxg3+ {[%emt 0:01:29][%mdl 512]} 37. hxg3 {[%emt 0:02:48] Threatens to win with Rf2.} Qxc2+ {[%emt 0:00:12]} 38. Re2 {[%emt 0:00:05]} Qf5 {[%emt 0:01:42] Strongly threatening ...Re6.} 39. Nxg4 {[%emt 0:00:33]} Qxg4 {[%emt 0:04:09]} 40. Rxe7 {[%emt 0:00:02]} Re6 {[%emt 0:01:42]} 41. Rb7 {[%emt 0:00:58]} Qh5 {[%emt 0:03:13]} 42. Rb8+ {[%emt 0:01:06]} Kf7 {[%emt 0:00:07]} 43. Rb7+ {[%emt 0:00:20]} Kg6 {[%emt 0:00:06]} 44. Rb8 {[%emt 0:00:25] Wards off Re2+} Re1 {[%emt 0:00:28] ( -> ...Qh1+)} 45. Rb6+ {[%emt 0:00:45]} Kf5 {[%emt 0:05:24]} 46. Rh6 {[%emt 0:00:14] Dodges Qh1+} Qe8 {[%emt 0:00:10] And now ...Qa8+ would win.} 47. Rd6 $2 {[%emt 0:02:07]} (47. Kf2) 47... Kg4 {[%emt 0:02:09]} 48. Rd5 {[%emt 0:06:20] [#]} Re2+ $1 {[%emt 0:02:14][%mdl 512]} 49. Kf1 {[%emt 0:00:25]} (49. Kg1 Rxb2) 49... Rxb2 {[%emt 0:00:23] Black mates.} 50. Re5 {[%emt 0:00:12]} Qh8 {[%emt 0:00:36][%cal Rh8h1]} 51. Ne2 {[%emt 0:00:49]} Qh1+ {[%emt 0:02:39]} 52. Kf2 {[%emt 0:00:41]} Qf3+ {[%emt 0:00:35]} 53. Ke1 {[%emt 0:00:01]} Qxa3 {[%emt 0:00:16]} 54. Kf2 {[%emt 0:01:59]} Qf3+ {[%emt 0:01:25]} 55. Ke1 {[%emt 0:00:01]} Qh1+ {[%emt 0:00:18]} 56. Kf2 {[%emt 0:00:08]} Qh2+ {[%emt 0:00:10]} 57. Ke1 {[%emt 0:00:31]} a3 {[%emt 0:00:15]} 58. Rf5 {[%emt 0:04:48] White got outplayed after the opening.   Weighted Error Value: White=0.57/Black=0.05 (flawless) .  Mistake:       	White=4     	---        Inaccurate:     	White=2     	---        OK:         	White=12    	Black=19     Best:        	White=7     	Black=2      Strong:       	---       	Black=2} 0-1

[Event "RUDAR XXII-IM 2024"]
[Site "Pozarevac"]
[Date "2024.02.12"]
[Round "3.2"]
[White "Mesic, Ismet"]
[Black "Karamsetty, Jeevan"]
[Result "1-0"]
[ECO "B07"]
[WhiteElo "2232"]
[BlackElo "2211"]
[Annotator "TA"]
[PlyCount "85"]
[EventDate "2024.02.12"]
[EventType "tourn"]
[EventCountry "SRB"]
[SourceTitle "playchess.com"]
[Source "ChessBase"]
[SourceQuality "1"]
[TimeControl "5400+30"]

{[%evp 13,85,36,34,34,183,179,211,204,245,203,223,203,191,158,213,149,273,287,307,246,242,218,351,261,270,268,282,279,299,245,239,231,235,243,252,205,250,183,322,336,468,464,496,478,515,483,741,709,666,455,891,668,808,856,880,881,856,856,1178,1170,5143,5052,29972,29974,29974,29976,29977,29978,29978,29979,29979,29980,29980,29981]} 1. e4 {[%emt 0:00:03]} d6 {[%emt 0:00:08]} 2. d4 {[%emt 0:00:11]} Nf6 {[%emt 0:00:05]} 3. Nc3 {[%emt 0:00:10]} e5 {[%emt 0:00:06]} 4. dxe5 {[%emt 0:00:08]} dxe5 {[%emt 0:00:06]} 5. Qxd8+ {[%emt 0:00:04]} Kxd8 {[%emt 0:00:06]} 6. Bc4 {[%emt 0:00:08]} Ke8 {[%emt 0:00:04]} 7. Nf3 {[%emt 0:00:12]} Bd6 {[%emt 0:00:20]} 8. Be3 {[%emt 0:00:06]} c6 {[%emt 0:01:19] [#]} (8... a6 $14) 9. O-O-O $1 $18 {[%emt 0:00:07]} Be7 {[%emt 0:18:03]} 10. Nxe5 {[%emt 0:00:39] White is clearly better.} Rf8 {[%emt 0:00:13]} 11. a4 {[%emt 0:05:22]} Nbd7 {[%emt 0:02:36]} 12. Nxd7 {[%emt 0:02:11]} Nxd7 {[%emt 0:02:46][%cal Bf6d7,Bd7e5,Be5g4][%mdl 32]} 13. f3 {[%emt 0:02:22][%cal Bf2f3,Bf3f4][%mdl 32]} b6 {[%emt 0:22:02]} (13... Bc5 $16) 14. Ne2 {[%emt 0:08:32]} Bb7 {[%emt 0:16:32]} (14... Ne5 $16) 15. Nd4 {[%emt 0:04:00]} g6 {[%emt 0:00:50] Wards off Nf5} 16. Rhe1 {[%emt 0:02:04]} Ne5 {[%emt 0:05:49]} 17. Ba2 {[%emt 0:04:05]} Bc5 {[%emt 0:08:24]} (17... Rd8 {was called for.} 18. Rd2 h5) 18. f4 {[%emt 0:05:33]} Ng4 {[%emt 0:01:09]} 19. Bg1 {[%emt 0:03:22]} Nf6 {[%emt 0:02:16]} 20. c3 {[%emt 0:04:33]} a5 {[%emt 0:04:21]} 21. Nf5 {[%emt 0:14:28][%cal Bd4f5,Bf5d6,Bd6c4][%mdl 32]} Bxg1 {[%emt 0:02:37]} 22. Nd6+ {[%emt 0:00:50]} Ke7 {[%emt 0:02:05]} 23. Rxg1 {[%emt 0:00:08]} (23. Nxb7 Bxh2 24. e5 Bxf4+ 25. Kb1 Nd5 $14) 23... Bc8 {[%emt 0:00:24]} 24. f5 {[%emt 0:02:19]} Ng4 {[%emt 0:00:53]} 25. Nc4 {[%emt 0:03:58]} Rb8 {[%emt 0:01:13]} (25... Ba6 $142) 26. h3 {[%emt 0:00:23]} Nf6 {[%emt 0:02:12]} 27. g4 {[%emt 0:04:59][%cal Bg2g4,Bg4f5][%mdl 32]} Nd7 {[%emt 0:02:43] Against Ne5} 28. e5 {[%emt 0:00:54]} f6 {[%emt 0:01:24]} 29. exf6+ {[%emt 0:01:29]} Rxf6 {[%emt 0:00:22]} (29... Kxf6 $142 30. Nd6 gxf5 31. Nxc8 (31. Nxf5 Kg6 $18) (31. gxf5 Nc5 $18) 31... Nc5) 30. Rge1+ {[%emt 0:00:23]} Kd8 {[%emt 0:01:02][%cal Be7d8,Bd8c7,Bc7d6][%mdl 32]} 31. Ne5 {[%emt 0:01:42]} gxf5 {[%emt 0:00:59]} (31... Kc7 $142 32. Nxd7 Bxd7) 32. gxf5 {[%emt 0:00:18]} Kc7 {[%emt 0:01:07]} 33. Nxd7 {[%emt 0:00:14]} Bxd7 {[%emt 0:00:07]} 34. Re7 $1 {[%emt 0:00:10][%csl LRd7,LRh7]} Rd6 {[%emt 0:00:32]} 35. Be6 {[%emt 0:00:13]} ({Less strong is} 35. Rxh7 Rxd1+ 36. Kxd1 Kd6 $16) 35... Rd8 {[%emt 0:01:20]} 36. Rxh7 {[%emt 0:00:38] [#] Strongly threatening Rxd6.} Rxd1+ {[%emt 0:00:40]} 37. Kxd1 {[%emt 0:00:09] White threatens Rxd7+ and mate.} Kd6 {[%emt 0:00:15]} 38. Rxd7+ {[%emt 0:00:07] White mates.} Rxd7 {[%emt 0:00:03]} 39. Bxd7 {[%emt 0:00:07]} Kxd7 {[%emt 0:00:02] KP-KP} 40. h4 {[%emt 0:00:39][%cal Bh3h4,Bh4h5,Bh5h6][%mdl 32]} Ke7 {[%emt 0:00:38]} 41. h5 {[%emt 0:00:07]} Kf6 {[%emt 0:00:28]} 42. h6 {[%emt 0:00:04]} b5 {[%emt 0:00:02]} 43. b3 {[%emt 0:00:19] Black got outplayed after the opening.   Weighted Error Value: White=0.34/Black=0.63.  Mistake:       	---       	Black=6      Inaccurate:     	White=1     	Black=1      OK:         	White=9     	Black=6      Best:        	White=1     	---        Strong:       	White=1     	---} 1-0

[Event "RUDAR XXII-IM 2024"]
[Site "Pozarevac"]
[Date "2024.02.12"]
[Round "3.3"]
[White "Potluri Saye Srreezza"]
[Black "Popchev, Milko"]
[Result "1/2-1/2"]
[ECO "A53"]
[WhiteElo "1983"]
[BlackElo "2193"]
[Annotator "TA"]
[PlyCount "103"]
[EventDate "2024.02.12"]
[EventType "tourn"]
[EventCountry "SRB"]
[SourceTitle "playchess.com"]
[Source "ChessBase"]
[SourceQuality "1"]
[TimeControl "5400+30"]

{[%evp 13,103,47,56,42,35,11,10,2,30,0,18,-75,-62,-67,-17,-16,-18,-26,-10,-29,-14,-21,-14,-14,-17,-23,0,0,0,0,0,-35,-20,-68,-72,-62,-70,-68,-27,-43,-23,-20,-14,-10,-12,-14,-7,-2,0,-16,0,-8,-3,-7,-8,-8,0,0,0,0,0,0,0,0,0,0,0,-28,-8,-29,-29,-37,-28,-27,0,0,0,0,0,0,0,0,0,0,0,0,0,0,0,-8,-8,-8]} 1. e4 {[%emt 0:01:13]} c6 {[%emt 0:09:56]} 2. Nf3 {[%emt 0:00:09]} d6 {[%emt 0:00:29]} 3. d4 {[%emt 0:00:44]} Bg4 {[%emt 0:00:24]} 4. c4 {[%emt 0:12:03]} e6 {[%emt 0:00:39]} 5. Nc3 {[%emt 0:00:26]} Nf6 {[%emt 0:00:26][%cal Bg8f6,Bf6e8,Be8d6][%mdl 32]} 6. Be2 {[%emt 0:01:22]} Be7 {[%emt 0:00:19]} 7. O-O {[%emt 0:01:42]} O-O {[%emt 0:00:17]} 8. Bg5 {[%emt 0:11:32]} Nbd7 {[%emt 0:04:27]} 9. e5 {[%emt 0:08:28]} Ne8 {[%emt 0:03:36]} 10. Bxe7 {[%emt 0:00:38]} Qxe7 {[%emt 0:00:05]} 11. Qb3 {[%emt 0:05:43]} dxe5 {[%emt 0:04:41]} 12. Qxb7 {[%emt 0:09:21]} (12. Nxe5 $11 Bxe2 13. Nxe2) 12... Nd6 $17 {[%emt 0:00:21]} 13. Qxc6 {[%emt 0:01:08]} Rfc8 {[%emt 0:01:16]} (13... Rac8 $15 14. Qa4 Nxc4) 14. Qa6 $11 {[%emt 0:00:14]} exd4 {[%emt 0:10:47]} 15. Nxd4 {[%emt 0:00:27]} Nc5 {[%emt 0:01:39]} 16. Qa5 {[%emt 0:09:36]} (16. Nc6 Qe8 17. Qa5 Bxe2 (17... Rxc6 18. Bxg4 Ndb7 19. Qb4 $11) 18. Nxe2 Qxc6 $19) 16... Bxe2 {[%emt 0:04:12]} 17. Ncxe2 {[%emt 0:00:51]} e5 {[%emt 0:03:12]} 18. Nb5 {[%emt 0:07:33]} Nxc4 {[%emt 0:04:37]} 19. Qb4 {[%emt 0:00:24]} Nb6 {[%emt 0:03:12]} 20. Rfd1 {[%emt 0:02:12] Prevents Qd7} a5 {[%emt 0:02:35]} 21. Qg4 {[%emt 0:01:27]} Ne6 {[%emt 0:01:10]} 22. Rac1 {[%emt 0:07:59]} Rxc1 {[%emt 0:02:28]} 23. Rxc1 {[%emt 0:00:53]} (23. Nxc1 $11 {should be considered.} Qb4 24. Qxb4 axb4 25. b3) 23... Qb4 $15 {[%emt 0:00:28]} 24. Qxb4 {[%emt 0:01:13]} axb4 {[%emt 0:00:09]} 25. a3 {[%emt 0:06:16]} bxa3 {[%emt 0:00:36]} 26. Nxa3 {[%emt 0:00:48]} Kf8 {[%emt 0:00:56]} 27. g3 {[%emt 0:03:34]} Ke7 {[%emt 0:00:49]} 28. Nc4 {[%emt 0:02:14]} Nxc4 {[%emt 0:01:39]} 29. Rxc4 $11 {[%emt 0:00:09][%mdl 4096] Endgame. KRN-KRN} f5 {[%emt 0:02:55]} 30. Rb4 {[%emt 0:01:47]} Nc5 {[%emt 0:03:49]} 31. Nc3 {[%emt 0:00:48]} Kd7 {[%emt 0:01:52]} 32. Rb5 {[%emt 0:02:06]} Kc6 {[%emt 0:00:42]} 33. b4 {[%emt 0:00:36]} Nd7 {[%emt 0:02:48]} (33... Ne4 34. Rxe5 Nxc3 35. Rc5+ (35. Rxf5 $2 Rc8 $17) 35... Kd6 36. Rxc3 $16) 34. Rd5 {[%emt 0:00:14]} Ra1+ {[%emt 0:00:39]} 35. Kg2 {[%emt 0:00:14]} Rc1 {[%emt 0:04:12]} 36. b5+ {[%emt 0:00:06]} Kc7 {[%emt 0:00:05]} 37. b6+ {[%emt 0:00:49]} Kc6 {[%emt 0:02:28]} (37... Nxb6 38. Nb5+ Kc6 39. Rxe5 $11) 38. b7 $1 {[%emt 0:00:21][%cal Od5d7] [#] Rxd7! would now be deadly.} Nb8 {[%emt 0:00:01]} 39. Rd8 {[%emt 0:01:45]} Kxb7 {[%emt 0:00:23]} 40. Ne2 {[%emt 0:00:09]} Rc2 {[%emt 0:00:47]} 41. Kf1 {[%emt 0:00:09]} Rc8 {[%emt 0:01:14]} 42. Rd5 {[%emt 0:00:14]} Nc6 {[%emt 0:00:27]} 43. f4 {[%emt 0:00:14]} exf4 {[%emt 0:01:04]} 44. Nxf4 {[%emt 0:00:42] The position is equal.} g6 {[%emt 0:00:30]} 45. Rd7+ {[%emt 0:00:07]} Rc7 {[%emt 0:00:28]} 46. Rxc7+ {[%emt 0:00:05]} Kxc7 {[%emt 0:00:04] KN-KN} 47. Ne6+ $1 {[%emt 0:00:04]} Kd6 {[%emt 0:00:21]} 48. Nf8 {[%emt 0:00:06]} Nd4 {[%emt 0:03:43]} 49. Nxh7 {[%emt 0:00:11]} Ne6 {[%emt 0:00:09]} 50. Nf6 {[%emt 0:00:51]} Nf8 {[%emt 0:02:18]} 51. g4 {[%emt 0:01:27]} Ke5 {[%emt 0:01:31]} 52. gxf5 {[%emt 0:00:18] Weighted Error Value: White=0.11 (very precise) /Black=0.08 (flawless) .  Mistake:       	White=2     	Black=1      Inaccurate:     	White=3     	Black=3      OK:         	White=23    	Black=18     Best:        	White=1     	Black=2      Strong:       	White=2     	---} 1/2-1/2